[Event "Werner Ott Kreuzberger 2019"]
[Site "Berlin"]
[Date "2019.06.25"]
[Round "1.2"]
[White "Matthes, Aaron"]
[Black "Malek, Daniel"]
[Result "1/2-1/2"]
[ECO "A45"]
[WhiteElo "1791"]
[BlackElo "2362"]
[Annotator "NA"]
[PlyCount "93"]
[EventDate "2019.06.22"]
[EventType "swiss"]
[EventCountry "GER"]
[SourceTitle "playchess.com"]
[Source "ChessBase"]
[SourceQuality "1"]
[TimeControl "40/5400+30:1800+30"]

1. d4 {[%emt 0:00:00]} Nf6 {[%emt 0:00:00]} 2. Bf4 {[%emt 0:00:00]} c5 {[%emt 0:00:00]} 3. c3 {[%emt 0:00:00]} Qb6 {[%emt 0:01:21]} 4. Qb3 {[%emt 0:01:55]} Qxb3 {[%emt 0:01:55]} 5. axb3 {[%emt 0:00:06]} cxd4 {[%emt 0:00:11]} 6. Bxb8 {[%emt 0:00:22]} Rxb8 {[%emt 0:00:55]} 7. Rxa7 {[%emt 0:02:26]} dxc3 {[%emt 0:02:15]} 8. bxc3 {[%emt 0:00:59]} e6 {[%emt 0:08:39]} 9. e3 {[%emt 0:02:40]} d5 {[%emt 0:00:55]} 10. Nf3 {[%emt 0:02:44]} Bd6 {[%emt 0:02:35]} 11. Nbd2 {[%emt 0:04:27]} Bd7 {[%emt 0:01:10]} 12. Bd3 {[%emt 0:03:58]} Ke7 {[%emt 0:06:37]} 13. O-O {[%emt 0:01:17]} Rhc8 {[%emt 0:08:00]} 14. c4 {[%emt 0:02:14]} Bc5 {[%emt 0:03:45]} 15. Ra2 {[%emt 0:02:19]} Ra8 {[%emt 0:02:57]} 16. Rfa1 {[%emt 0:02:35]} Rxa2 {[%emt 0:00:09]} 17. Rxa2 {[%emt 0:00:05]} Bb4 {[%emt 0:04:49]} 18. h4 {[%emt 0:11:08]} g6 {[%emt 0:08:14]} 19. Kf1 {[%emt 0:07:12]} dxc4 {[%emt 0:07:20]} 20. bxc4 {[%emt 0:00:35]} Rc7 {[%emt 0:02:46]} 21. Ne5 {[%emt 0:03:40]} Be8 {[%emt 0:00:57]} 22. Ndf3 {[%emt 0:03:03]} Nd7 {[%emt 0:01:28]} 23. Nxd7 {[%emt 0:03:16]} Bxd7 {[%emt 0:00:27]} 24. Rb2 {[%emt 0:03:31]} Bc5 {[%emt 0:08:45]} 25. Nd4 {[%emt 0:01:47]} e5 {[%emt 0:04:19]} 26. Nb5 {[%emt 0:01:56]} Bxb5 {[%emt 0:04:39]} 27. cxb5 {[%emt 0:01:52]} f5 {[%emt 0:00:06]} 28. Ke2 {[%emt 0:02:20]} b6 {[%emt 0:01:24]} 29. Ra2 {[%emt 0:04:51]} e4 {[%emt 0:06:41]} 30. Bc4 {[%emt 0:00:51]} Bxe3 {[%emt 0:02:09]} 31. Kxe3 {[%emt 0:03:36]} Rxc4 {[%emt 0:00:07]} 32. Ra6 {[%emt 0:00:01]} Rc3+ {[%emt 0:02:30]} 33. Kf4 {[%emt 0:00:08]} Rc2 {[%emt 0:00:14]} 34. Ke3 {[%emt 0:00:20]} Kf6 {[%emt 0:01:43]} 35. Rxb6+ {[%emt 0:01:18]} Ke5 {[%emt 0:00:02]} 36. g3 {[%emt 0:00:06]} Rb2 {[%emt 0:01:03]} 37. Rb7 {[%emt 0:01:15]} h6 {[%emt 0:00:55]} 38. Re7+ {[%emt 0:00:16]} Kf6 {[%emt 0:00:18]} 39. Rc7 {[%emt 0:01:27]} Rxb5 {[%emt 0:03:55]} 40. Rc6+ {[%emt 0:00:05]} Kg7 {[%emt 0:00:32]} 41. Rc7+ {[%emt 0:30:05]} Kf8 {[%emt 0:30:36]} 42. Rc8+ {[%emt 0:01:54]} Kf7 {[%emt 0:01:12]} 43. Rc7+ {[%emt 0:00:06]} Ke8 {[%emt 0:00:06]} 44. Rc6 {[%emt 0:00:24]} Rb3+ {[%emt 0:00:00]} 45. Ke2 {[%emt 0:00:00]} Kf7 {[%emt 0:00:00]} 46. Rc7+ {[%emt 0:00:00]} Kf6 {[%emt 0:00:00]} 47. Rc6+ {[%emt 0:00:00]} 1/2-1/2

[Event "Werner Ott Kreuzberger 2019"]
[Site "Berlin"]
[Date "2019.06.25"]
[Round "3.2"]
[White "Federau, Juergen"]
[Black "Noetzel, Felix"]
[Result "1/2-1/2"]
[ECO "D45"]
[WhiteElo "2124"]
[BlackElo "2203"]
[Annotator "NA"]
[PlyCount "76"]
[EventDate "2019.06.22"]
[EventType "swiss"]
[EventCountry "GER"]
[SourceTitle "playchess.com"]
[Source "ChessBase"]
[SourceQuality "1"]
[TimeControl "40/5400+30:1800+30"]

1. d4 {[%emt 0:00:00]} d5 {[%emt 0:00:00]} 2. c4 {[%emt 0:00:00]} e6 {[%emt 0:00:00]} 3. Nc3 {[%emt 0:00:00]} c6 {[%emt 0:00:20]} 4. e3 {[%emt 0:00:00]} Nf6 {[%emt 0:00:10]} 5. Nf3 {[%emt 0:00:00]} Nbd7 {[%emt 0:00:09]} 6. b3 {[%emt 0:00:09]} Bd6 {[%emt 0:01:09]} 7. Bb2 {[%emt 0:00:10]} Ne4 {[%emt 0:08:03]} 8. Nxe4 {[%emt 0:04:39]} dxe4 {[%emt 0:00:06]} 9. Nd2 {[%emt 0:00:23]} f5 {[%emt 0:11:45]} 10. Qh5+ {[%emt 0:16:37]} g6 {[%emt 0:02:27]} 11. Qe2 {[%emt 0:08:06]} O-O {[%emt 0:20:22]} 12. h4 {[%emt 0:13:28]} c5 {[%emt 0:05:57]} 13. h5 {[%emt 0:03:27]} g5 {[%emt 0:01:35]} 14. O-O-O {[%emt 0:05:25]} Qf6 {[%emt 0:09:14]} 15. f3 {[%emt 0:09:05]} exf3 {[%emt 0:01:18]} 16. Nxf3 {[%emt 0:01:41]} g4 {[%emt 0:01:00]} 17. Ne1 {[%emt 0:03:38]} e5 {[%emt 0:04:33]} 18. dxe5 {[%emt 0:09:01]} Bxe5 {[%emt 0:00:47]} 19. Nd3 {[%emt 0:00:27]} Bxb2+ {[%emt 0:00:37]} 20. Qxb2 {[%emt 0:00:47]} Qxb2+ {[%emt 0:08:09]} 21. Kxb2 {[%emt 0:00:22]} Re8 {[%emt 0:00:18]} 22. Re1 {[%emt 0:09:25]} b6 {[%emt 0:00:10]} 23. Nf4 {[%emt 0:00:23]} Nf6 {[%emt 0:08:03]} 24. Bd3 {[%emt 0:00:45]} Re5 {[%emt 0:01:48]} 25. h6 {[%emt 0:10:27]} Bb7 {[%emt 0:00:41]} 26. Re2 {[%emt 0:00:27]} Rae8 {[%emt 0:02:32]} 27. Rhe1 {[%emt 0:00:49]} g3 {[%emt 0:00:34]} 28. Kc3 {[%emt 0:00:57]} Kf7 {[%emt 0:04:57]} 29. Kd2 {[%emt 0:01:32]} Rd8 {[%emt 0:00:37]} 30. Kc3 {[%emt 0:00:26]} Be4 {[%emt 0:05:30]} 31. Bxe4 {[%emt 0:00:14]} Nxe4+ {[%emt 0:00:15]} 32. Kc2 {[%emt 0:00:05]} Rd6 {[%emt 0:02:11]} 33. Rh1 {[%emt 0:01:02]} Nf2 {[%emt 0:00:33]} 34. Rh5 {[%emt 0:00:42]} Kf6 {[%emt 0:00:34]} 35. Nd5+ {[%emt 0:00:35]} Kg6 {[%emt 0:00:20]} 36. Nf4+ {[%emt 0:00:08]} Kf6 {[%emt 0:00:07]} 37. Nd5+ {[%emt 0:00:06]} Kg6 {[%emt 0:01:02]} 38. Nf4+ {[%emt 0:00:10]} Kf6 {[%emt 0:00:04]} 1/2-1/2

[Event "Werner Ott Kreuzberger 2019"]
[Site "Berlin"]
[Date "2019.06.25"]
[Round "4.2"]
[White "Vogel, Constantin"]
[Black "Krefenstein, Sergej"]
[Result "1-0"]
[ECO "A20"]
[WhiteElo "2073"]
[BlackElo "2158"]
[Annotator "NA"]
[PlyCount "53"]
[EventDate "2019.06.22"]
[EventType "swiss"]
[EventCountry "GER"]
[SourceTitle "playchess.com"]
[Source "ChessBase"]
[SourceQuality "1"]
[TimeControl "40/5400+30:1800+30"]

1. c4 {[%emt 0:00:00]} e5 {[%emt 0:00:00]} 2. g3 {[%emt 0:00:00]} c6 {[%emt 0:00:00]} 3. d4 {[%emt 0:00:34]} e4 {[%emt 0:00:00]} 4. Bg2 {[%emt 0:01:12]} d5 {[%emt 0:00:19]} 5. Nc3 {[%emt 0:01:16]} Nf6 {[%emt 0:00:38]} 6. cxd5 {[%emt 0:05:38]} cxd5 {[%emt 0:00:08]} 7. Nh3 {[%emt 0:00:38]} Nbd7 {[%emt 0:03:15]} 8. O-O {[%emt 0:00:52]} Be7 {[%emt 0:03:56]} 9. Qb3 {[%emt 0:15:56]} Nb6 {[%emt 0:02:41]} 10. Bg5 {[%emt 0:06:21]} h6 {[%emt 0:09:36]} 11. Bxf6 {[%emt 0:00:06]} Bxf6 {[%emt 0:00:05]} 12. Nf4 {[%emt 0:00:42]} Be6 {[%emt 0:00:46]} 13. a4 {[%emt 0:05:15]} Qd7 {[%emt 0:13:39]} 14. a5 {[%emt 0:04:18]} Nc4 {[%emt 0:00:59]} 15. Nxe6 {[%emt 0:01:05]} fxe6 {[%emt 0:08:17]} 16. Nxe4 {[%emt 0:02:25]} Bxd4 {[%emt 0:02:55]} 17. Rfd1 {[%emt 0:11:45]} Bxb2 {[%emt 0:21:07]} 18. Nc5 {[%emt 0:01:37]} Qe7 {[%emt 0:03:51]} 19. Nxe6 {[%emt 0:14:27]} Bxa1 {[%emt 0:02:58]} 20. Bxd5 {[%emt 0:01:17]} Nd6 {[%emt 0:06:31]} 21. Qa4+ {[%emt 0:01:53]} Qd7 {[%emt 0:00:30]} 22. Qxa1 {[%emt 0:00:25]} Ke7 {[%emt 0:04:28]} 23. Qxg7+ {[%emt 0:00:52]} Nf7 {[%emt 0:00:07]} 24. Nf4 {[%emt 0:00:36]} Raf8 {[%emt 0:03:02]} 25. Ng6+ {[%emt 0:02:20]} Ke8 {[%emt 0:01:57]} 26. Bxf7+ {[%emt 0:00:31]} Qxf7 {[%emt 0:00:26]} 27. Qe5+ {[%emt 0:00:09]} 1-0

[Event "Werner Ott Kreuzberger 2019"]
[Site "Berlin"]
[Date "2019.06.26"]
[Round "5.1"]
[White "Zeitz, Philip"]
[Black "Nohr, Jonas"]
[Result "1/2-1/2"]
[ECO "A14"]
[WhiteElo "2202"]
[BlackElo "2108"]
[Annotator "NA"]
[PlyCount "45"]
[EventDate "2019.06.22"]
[EventType "swiss"]
[EventCountry "GER"]
[SourceTitle "playchess.com"]
[Source "ChessBase"]
[SourceQuality "1"]
[TimeControl "40/5400+30:1800+30"]

1. c4 {[%emt 0:00:00]} e6 {[%emt 0:00:00]} 2. g3 {[%emt 0:00:00]} d5 {[%emt 0:00:02]} 3. Bg2 {[%emt 0:00:00]} Nf6 {[%emt 0:00:19]} 4. Nf3 {[%emt 0:00:00]} Be7 {[%emt 0:01:07]} 5. O-O {[%emt 0:00:14]} O-O {[%emt 0:00:19]} 6. b3 {[%emt 0:00:17]} Nbd7 {[%emt 0:02:10]} 7. Bb2 {[%emt 0:00:34]} c6 {[%emt 0:01:28]} 8. d3 {[%emt 0:05:39]} b6 {[%emt 0:05:45]} 9. Nbd2 {[%emt 0:04:55]} Bb7 {[%emt 0:01:15]} 10. e4 {[%emt 0:07:41]} dxe4 {[%emt 0:08:20]} 11. dxe4 {[%emt 0:02:02]} c5 {[%emt 0:03:54]} 12. e5 {[%emt 0:01:53]} Ne4 {[%emt 0:07:29]} 13. Nxe4 {[%emt 0:07:55]} Bxe4 {[%emt 0:00:05]} 14. Qe2 {[%emt 0:02:12]} Bb7 {[%emt 0:01:21]} 15. Nd2 {[%emt 0:03:02]} Bxg2 {[%emt 0:00:13]} 16. Kxg2 {[%emt 0:00:04]} Qc7 {[%emt 0:01:50]} 17. f4 {[%emt 0:01:46]} Qc6+ {[%emt 0:01:06]} 18. Kg1 {[%emt 0:02:28]} Rae8 {[%emt 0:12:08]} 19. Rfe1 {[%emt 0:06:11]} f6 {[%emt 0:10:25]} 20. exf6 {[%emt 0:03:21]} Bxf6 {[%emt 0:00:07]} 21. Bxf6 {[%emt 0:00:51]} gxf6 {[%emt 0:00:30]} 22. Ne4 {[%emt 0:04:16]} f5 {[%emt 0:04:49]} 23. Nc3 {[%emt 0:06:14]} 1/2-1/2

[Event "Werner Ott Kreuzberger 2019"]
[Site "Berlin"]
[Date "2019.06.26"]
[Round "5.2"]
[White "Wierzbicki, Jirawat"]
[Black "Vogel, Constantin"]
[Result "0-1"]
[ECO "B22"]
[WhiteElo "2152"]
[BlackElo "2073"]
[Annotator "NA"]
[PlyCount "44"]
[EventDate "2019.06.22"]
[EventType "swiss"]
[EventCountry "GER"]
[SourceTitle "playchess.com"]
[Source "ChessBase"]
[SourceQuality "1"]
[TimeControl "40/5400+30:1800+30"]

1. e4 {[%emt 0:00:00]} c5 {[%emt 0:02:28]} 2. c3 {[%emt 0:00:40]} g6 {[%emt 0:00:47]} 3. d4 {[%emt 0:00:14]} cxd4 {[%emt 0:00:17]} 4. cxd4 {[%emt 0:00:07]} d5 {[%emt 0:00:07]} 5. Nc3 {[%emt 0:00:30]} dxe4 {[%emt 0:03:02]} 6. Bc4 {[%emt 0:00:36]} Bg7 {[%emt 0:05:54]} 7. Qb3 {[%emt 0:01:18]} e6 {[%emt 0:06:45]} 8. d5 {[%emt 0:01:10]} Ne7 {[%emt 0:16:25]} 9. dxe6 {[%emt 0:05:14]} Bxe6 {[%emt 0:08:23]} 10. Bxe6 {[%emt 0:04:36]} fxe6 {[%emt 0:00:12]} 11. Nxe4 {[%emt 0:02:47]} Qd5 {[%emt 0:05:34]} 12. Qxd5 {[%emt 0:05:27]} Nxd5 {[%emt 0:03:51]} 13. Nd6+ {[%emt 0:04:03]} Kd7 {[%emt 0:00:16]} 14. Nxb7 {[%emt 0:04:38]} Na6 {[%emt 0:03:44]} 15. Nf3 {[%emt 0:04:46]} Rab8 {[%emt 0:01:10]} 16. Na5 {[%emt 0:00:23]} Nab4 {[%emt 0:05:42]} 17. Kd1 {[%emt 0:07:19]} Nd3 {[%emt 0:03:30]} 18. Ke2 {[%emt 0:02:26]} Nxc1+ {[%emt 0:06:03]} 19. Raxc1 {[%emt 0:00:44]} Rxb2+ {[%emt 0:00:24]} 20. Kf1 {[%emt 0:01:08]} Rc8 {[%emt 0:03:25]} 21. Nc4 {[%emt 0:07:38]} Ke7 {[%emt 0:02:56]} 22. Rg1 {[%emt 0:08:26]} Nb6 {[%emt 0:20:05]} 0-1

[Event "Werner Ott Kreuzberger 2019"]
[Site "Berlin"]
[Date "2019.06.28"]
[Round "7.1"]
[White "Foerster, Jonas"]
[Black "Noetzel, Felix"]
[Result "0-1"]
[ECO "D36"]
[WhiteElo "2274"]
[BlackElo "2203"]
[Annotator "NA RC"]
[PlyCount "69"]
[EventDate "2019.06.22"]
[EventType "swiss"]
[EventCountry "GER"]
[SourceTitle "playchess.com"]
[Source "ChessBase"]
[SourceQuality "1"]
[TimeControl "40/5400+30:1800+30"]

1. Nf3 {[%emt 0:00:00]} d5 {[%emt 0:00:00]} 2. d4 {[%emt 0:00:00]} e6 {[%emt 0:01:26]} 3. c4 {[%emt 0:04:16]} c6 {[%emt 0:00:11]} 4. Qc2 {[%emt 0:04:05]} Nf6 {[%emt 0:06:30]} 5. Bg5 {[%emt 0:06:10]} Nbd7 {[%emt 0:01:26]} 6. cxd5 {[%emt 0:07:42]} exd5 {[%emt 0:01:11]} 7. Nc3 {[%emt 0:00:11]} Be7 {[%emt 0:00:31]} 8. e3 {[%emt 0:00:34]} O-O {[%emt 0:00:25]} 9. Bd3 {[%emt 0:00:54]} Re8 {[%emt 0:00:51]} 10. O-O {[%emt 0:04:03]} Nf8 {[%emt 0:01:35]} 11. Ne5 {[%emt 0:04:40]} g6 {[%emt 0:29:03]} 12. f4 {[%emt 0:11:29]} Ne6 {[%emt 0:01:58]} 13. Bxf6 {[%emt 0:18:37]} Bxf6 {[%emt 0:00:08]} 14. f5 {[%emt 0:00:02]} Ng7 {[%emt 0:03:28]} 15. fxg6 {[%emt 0:27:12]} fxg6 {[%emt 0:00:20]} 16. Qf2 {[%emt 0:02:12]} Bxe5 {[%emt 0:17:29]} 17. dxe5 {[%emt 0:00:01]} Rf8 {[%emt 0:07:41]} 18. Qg3 {[%emt 0:00:55]} Bf5 {[%emt 0:03:09]} 19. Rad1 {[%emt 0:02:34]} Bxd3 {[%emt 0:00:45]} 20. Rxd3 {[%emt 0:00:03]} Rxf1+ {[%emt 0:01:03]} 21. Kxf1 {[%emt 0:00:04]} Qb6 {[%emt 0:01:57]} 22. b3 {[%emt 0:01:28]} Rf8+ {[%emt 0:00:48]} 23. Ke2 {[%emt 0:00:48]} Nf5 {[%emt 0:01:47]} 24. Qg5 {[%emt 0:00:36]} Qc5 {[%emt 0:05:52]} 25. g4 {[%emt 0:01:40]} Ng7 {[%emt 0:00:22]} 26. h4 {[%emt 0:01:21]} Ne6 {[%emt 0:01:29]} 27. Qh6 {[%emt 0:00:12]} d4 {[%emt 0:01:13]} 28. exd4 {[%emt 0:00:58]} Nxd4+ {[%emt 0:00:29]} 29. Kd2 {[%emt 0:00:46]} Rf2+ {[%emt 0:03:07]} 30. Ke1 {[%emt 0:00:42]} Nf3+ {[%emt 0:01:20]} 31. Kd1 {[%emt 0:00:04]} Rf1+ {[%emt 0:00:37]} 32. Kc2 {[%emt 0:00:07]} Qf2+ {[%emt 0:00:17]} 33. Rd2 {[%emt 0:00:16]} Nxd2 {[%emt 0:01:38]} 34. Qxd2 {[%emt 0:00:07]} Qxd2+ {[%emt 0:01:14]} 35. Kxd2 {[%emt 0:00:01]} 0-1

[Event "Werner Ott Kreuzberger 2019"]
[Site "Berlin"]
[Date "2019.06.29"]
[Round "8.1"]
[White "Noetzel, Felix"]
[Black "Malek, Daniel"]
[Result "1-0"]
[ECO "C01"]
[WhiteElo "2203"]
[BlackElo "2362"]
[Annotator "ChessBase"]
[PlyCount "91"]
[EventDate "2019.06.22"]
[EventType "swiss"]
[EventCountry "GER"]
[SourceTitle "playchess.com"]
[Source "ChessBase"]
[SourceQuality "1"]
[TimeControl "40/5400+30:1800+30"]

1. e4 {[%emt 0:00:00]} e6 {[%emt 0:00:00]} 2. d4 {[%emt 0:00:09]} d5 {[%emt 0:00:00]} 3. exd5 {[%emt 0:00:22]} exd5 {[%emt 0:00:00]} 4. Bd3 {[%emt 0:00:11]} c5 {[%emt 0:00:13]} 5. Nf3 {[%emt 0:00:30]} c4 {[%emt 0:01:00]} 6. Be2 {[%emt 0:00:25]} Bd6 {[%emt 0:01:02]} 7. b3 {[%emt 0:00:56]} cxb3 {[%emt 0:00:11]} 8. axb3 {[%emt 0:00:07]} Ne7 {[%emt 0:00:26]} 9. O-O {[%emt 0:02:02]} O-O {[%emt 0:00:07]} 10. Na3 {[%emt 0:02:32]} Nbc6 {[%emt 0:03:32]} 11. c4 {[%emt 0:03:55]} Bf5 {[%emt 0:05:24]} 12. c5 {[%emt 0:06:26]} Bc7 {[%emt 0:01:59]} 13. Nb5 {[%emt 0:08:54]} Re8 {[%emt 0:05:12]} 14. Be3 {[%emt 0:12:41]} Be4 {[%emt 0:06:56]} 15. Ng5 {[%emt 0:10:14]} Bg6 {[%emt 0:01:58]} 16. Bf3 {[%emt 0:04:15]} Bb8 {[%emt 0:18:37]} 17. Qd2 {[%emt 0:10:03]} a6 {[%emt 0:20:16]} 18. Nh3 {[%emt 0:16:33]} axb5 {[%emt 0:11:50]} 19. Rxa8 {[%emt 0:00:05]} Bxh2+ {[%emt 0:00:08]} 20. Kxh2 {[%emt 0:00:04]} Qxa8 {[%emt 0:00:07]} 21. Nf4 {[%emt 0:00:19]} Rd8 {[%emt 0:00:07]} 22. Nxg6 {[%emt 0:03:42]} hxg6 {[%emt 0:00:32]} 23. g4 {[%emt 0:05:24]} b4 {[%emt 0:00:29]} 24. Bf4 {[%emt 0:02:58]} Qa3 {[%emt 0:03:43]} 25. Qe3 {[%emt 0:00:30]} Qb2 {[%emt 0:00:51]} 26. Rd1 {[%emt 0:01:46]} Nc8 {[%emt 0:04:24]} 27. Bxd5 {[%emt 0:04:20]} Rxd5 {[%emt 0:01:00]} 28. Qe8+ {[%emt 0:00:04]} Kh7 {[%emt 0:00:08]} 29. Kg2 {[%emt 0:00:16]} N8e7 {[%emt 0:03:24]} 30. Rh1+ {[%emt 0:00:55]} Rh5 {[%emt 0:00:01]} 31. gxh5 {[%emt 0:00:09]} Qxd4 {[%emt 0:04:06]} 32. hxg6+ {[%emt 0:03:11]} Kxg6 {[%emt 0:00:03]} 33. Bg3 {[%emt 0:01:48]} Qd5+ {[%emt 0:02:58]} 34. Kg1 {[%emt 0:00:23]} Nf5 {[%emt 0:01:54]} 35. Qe2 {[%emt 0:00:35]} Ncd4 {[%emt 0:00:46]} 36. Qh5+ {[%emt 0:00:22]} Kf6 {[%emt 0:00:03]} 37. Bh4+ {[%emt 0:00:33]} Ke6 {[%emt 0:00:15]} 38. Rh3 {[%emt 0:00:39]} Qe4 {[%emt 0:01:56]} 39. Bg5 {[%emt 0:00:38]} g6 {[%emt 0:00:54]} 40. Qd1 {[%emt 0:00:17]} Ne2+ {[%emt 0:01:59]} 41. Kf1 {[%emt 0:04:45]} Ned4 {[%emt 0:02:03]} 42. f3 {[%emt 0:20:39]} Qe5 {[%emt 0:11:07]} 43. Qd3 {[%emt 0:00:49]} Qxc5 {[%emt 0:01:39]} 44. Rh8 {[%emt 0:01:30]} Qc6 {[%emt 0:03:29]} 45. Kf2 {[%emt 0:02:36]} f6 {[%emt 0:08:15]} 46. Bd2 {[%emt 0:03:28]} 1-0

[Event "Werner Ott Kreuzberger 2019"]
[Site "Berlin"]
[Date "2019.06.29"]
[Round "8.2"]
[White "Vogel, Constantin"]
[Black "Stern, Rene"]
[Result "0-1"]
[ECO "A40"]
[WhiteElo "2073"]
[BlackElo "2538"]
[Annotator "RC"]
[PlyCount "62"]
[EventDate "2019.06.22"]
[EventType "swiss"]
[EventCountry "GER"]
[SourceTitle "playchess.com"]
[Source "ChessBase"]
[SourceQuality "1"]
[TimeControl "40/5400+30:1800+30"]

1. c4 {[%emt 0:00:38]} b6 {[%emt 0:00:00]} 2. Nc3 {[%emt 0:01:28]} Bb7 {[%emt 0:00:00]} 3. d4 {[%emt 0:00:44]} e6 {[%emt 0:00:00]} 4. e4 {[%emt 0:00:33]} Bb4 {[%emt 0:00:01]} 5. Bd3 {[%emt 0:03:48]} f5 {[%emt 0:08:21]} 6. Qh5+ {[%emt 0:14:10]} g6 {[%emt 0:00:13]} 7. Qe2 {[%emt 0:00:18]} Nf6 {[%emt 0:00:27]} 8. e5 {[%emt 0:12:41]} Ne4 {[%emt 0:28:29]} 9. Bxe4 {[%emt 0:00:26]} Bxe4 {[%emt 0:00:05]} 10. f3 {[%emt 0:04:40]} Bb7 {[%emt 0:00:06]} 11. h4 {[%emt 0:01:56]} Nc6 {[%emt 0:09:03]} 12. Qd3 {[%emt 0:08:26]} Be7 {[%emt 0:02:06]} 13. g3 {[%emt 0:00:54]} d6 {[%emt 0:01:41]} 14. exd6 {[%emt 0:01:47]} Qxd6 {[%emt 0:01:33]} 15. Bf4 {[%emt 0:05:32]} e5 {[%emt 0:04:38]} 16. Nb5 {[%emt 0:01:06]} Qd7 {[%emt 0:00:17]} 17. Bh6 {[%emt 0:05:17]} a6 {[%emt 0:01:38]} 18. Nc3 {[%emt 0:00:51]} exd4 {[%emt 0:03:42]} 19. Nd5 {[%emt 0:00:41]} Nb4 {[%emt 0:00:29]} 20. Nxb4 {[%emt 0:00:20]} Bxb4+ {[%emt 0:00:05]} 21. Kf2 {[%emt 0:00:34]} O-O-O {[%emt 0:03:38]} 22. Ne2 {[%emt 0:00:52]} Rhe8 {[%emt 0:06:17]} 23. Rhd1 {[%emt 0:01:17]} Bc5 {[%emt 0:01:57]} 24. Ng1 {[%emt 0:02:15]} Re6 {[%emt 0:03:12]} 25. a3 {[%emt 0:00:49]} a5 {[%emt 0:00:06]} 26. Rab1 {[%emt 0:02:29]} a4 {[%emt 0:00:19]} 27. Kf1 {[%emt 0:02:06]} Rde8 {[%emt 0:04:08]} 28. Re1 {[%emt 0:00:54]} Rxe1+ {[%emt 0:02:40]} 29. Rxe1 {[%emt 0:00:04]} Rxe1+ {[%emt 0:00:17]} 30. Kxe1 {[%emt 0:00:04]} Ba6 {[%emt 0:00:14]} 31. Ne2 {[%emt 0:00:45]} Qe6 {[%emt 0:00:31]} 0-1

[Event "Werner Ott Kreuzberger 2019"]
[Site "Berlin"]
[Date "2019.06.30"]
[Round "9.1"]
[White "Gebigke, Martin"]
[Black "Noetzel, Felix"]
[Result "0-1"]
[ECO "D30"]
[WhiteElo "2086"]
[BlackElo "2203"]
[Annotator "NA"]
[PlyCount "72"]
[EventDate "2019.06.22"]
[EventType "swiss"]
[EventCountry "GER"]
[SourceTitle "playchess.com"]
[Source "ChessBase"]
[SourceQuality "1"]
[TimeControl "40/5400+30:1800+30"]

1. d4 {[%emt 0:00:00]} d5 {[%emt 0:00:00]} 2. c4 {[%emt 0:00:00]} e6 {[%emt 0:00:00]} 3. Nf3 {[%emt 0:00:00]} c6 {[%emt 0:00:09]} 4. g3 {[%emt 0:00:00]} dxc4 {[%emt 0:00:38]} 5. Bg2 {[%emt 0:00:00]} b5 {[%emt 0:02:38]} 6. O-O {[%emt 0:04:12]} Bb7 {[%emt 0:01:07]} 7. a4 {[%emt 0:03:49]} Nd7 {[%emt 0:04:21]} 8. Qc2 {[%emt 0:02:47]} Ngf6 {[%emt 0:03:55]} 9. e4 {[%emt 0:10:00]} Be7 {[%emt 0:03:44]} 10. Rd1 {[%emt 0:02:15]} O-O {[%emt 0:05:03]} 11. Bf4 {[%emt 0:11:16]} Qc8 {[%emt 0:08:25]} 12. Nbd2 {[%emt 0:06:03]} h6 {[%emt 0:06:05]} 13. h4 {[%emt 0:04:41]} a6 {[%emt 0:02:02]} 14. Bh3 {[%emt 0:02:41]} Rd8 {[%emt 0:15:06]} 15. g4 {[%emt 0:16:28]} c5 {[%emt 0:04:08]} 16. g5 {[%emt 0:08:28]} Nh5 {[%emt 0:03:32]} 17. Be3 {[%emt 0:00:34]} hxg5 {[%emt 0:11:09]} 18. hxg5 {[%emt 0:02:33]} cxd4 {[%emt 0:03:24]} 19. Nxd4 {[%emt 0:00:34]} Ne5 {[%emt 0:00:18]} 20. N2f3 {[%emt 0:04:57]} Nxf3+ {[%emt 0:05:14]} 21. Nxf3 {[%emt 0:00:03]} Qc7 {[%emt 0:00:37]} 22. axb5 {[%emt 0:04:39]} axb5 {[%emt 0:01:16]} 23. Rxa8 {[%emt 0:01:12]} Bxa8 {[%emt 0:00:12]} 24. Rxd8+ {[%emt 0:01:00]} Bxd8 {[%emt 0:06:04]} 25. g6 {[%emt 0:09:57]} Nf4 {[%emt 0:01:54]} 26. gxf7+ {[%emt 0:00:36]} Kxf7 {[%emt 0:00:18]} 27. Bg4 {[%emt 0:02:22]} Nd3 {[%emt 0:01:53]} 28. Nd4 {[%emt 0:00:57]} Bxe4 {[%emt 0:05:48]} 29. Bxe6+ {[%emt 0:00:41]} Kf6 {[%emt 0:01:14]} 30. Qd2 {[%emt 0:00:27]} Qe5 {[%emt 0:00:58]} 31. Bg4 {[%emt 0:00:45]} Bc7 {[%emt 0:01:04]} 32. Kf1 {[%emt 0:01:07]} b4 {[%emt 0:02:55]} 33. f3 {[%emt 0:00:20]} Bg6 {[%emt 0:00:34]} 34. Nc6 {[%emt 0:00:58]} Qg3 {[%emt 0:00:32]} 35. Nxb4 {[%emt 0:00:26]} Nxb4 {[%emt 0:00:20]} 36. Qc3+ {[%emt 0:00:32]} Be5 {[%emt 0:00:14]} 0-1

[Event "Werner Ott Kreuzberger 2019"]
[Site "Berlin"]
[Date "2019.06.30"]
[Round "9.2"]
[White "Stern, Rene"]
[Black "Foerster, Jonas"]
[Result "1-0"]
[ECO "B07"]
[WhiteElo "2538"]
[BlackElo "2274"]
[Annotator "ChessBase"]
[PlyCount "77"]
[EventDate "2019.06.22"]
[EventType "swiss"]
[EventCountry "GER"]
[SourceTitle "playchess.com"]
[Source "ChessBase"]
[SourceQuality "1"]
[TimeControl "40/5400+30:1800+30"]

1. Nf3 {[%emt 0:00:00]} d6 {[%emt 0:02:35]} 2. d4 {[%emt 0:00:00]} g6 {[%emt 0:00:36]} 3. e4 {[%emt 0:00:00]} Bg7 {[%emt 0:01:30]} 4. c3 {[%emt 0:00:04]} Nf6 {[%emt 0:05:29]} 5. Bd3 {[%emt 0:00:20]} O-O {[%emt 0:01:35]} 6. O-O {[%emt 0:00:08]} Nc6 {[%emt 0:05:41]} 7. d5 {[%emt 0:00:47]} Nb8 {[%emt 0:00:19]} 8. h3 {[%emt 0:01:41]} c6 {[%emt 0:06:46]} 9. c4 {[%emt 0:00:22]} Na6 {[%emt 0:01:41]} 10. Nc3 {[%emt 0:00:30]} Nc5 {[%emt 0:02:57]} 11. Bc2 {[%emt 0:00:12]} a6 {[%emt 0:10:03]} 12. Be3 {[%emt 0:07:07]} cxd5 {[%emt 0:03:16]} 13. exd5 {[%emt 0:04:58]} Qc7 {[%emt 0:15:38]} 14. Nd4 {[%emt 0:13:27]} e5 {[%emt 0:03:11]} 15. dxe6 {[%emt 0:09:36]} Nxe6 {[%emt 0:02:15]} 16. Na4 {[%emt 0:00:49]} Nxd4 {[%emt 0:03:31]} 17. Bxd4 {[%emt 0:00:22]} Be6 {[%emt 0:01:20]} 18. Nb6 {[%emt 0:00:18]} Rad8 {[%emt 0:01:16]} 19. Rc1 {[%emt 0:00:58]} Nd7 {[%emt 0:01:23]} 20. Bxg7 {[%emt 0:01:24]} Kxg7 {[%emt 0:00:07]} 21. Qd4+ {[%emt 0:01:01]} Kg8 {[%emt 0:00:18]} 22. Nd5 {[%emt 0:00:59]} Bxd5 {[%emt 0:00:09]} 23. Qxd5 {[%emt 0:00:08]} Rfe8 {[%emt 0:07:11]} 24. Be4 {[%emt 0:05:34]} Nc5 {[%emt 0:02:30]} 25. Bf3 {[%emt 0:00:33]} Qb6 {[%emt 0:00:46]} 26. Qd4 {[%emt 0:05:40]} Qb4 {[%emt 0:03:48]} 27. Rfd1 {[%emt 0:11:21]} a5 {[%emt 0:01:11]} 28. h4 {[%emt 0:00:39]} Re5 {[%emt 0:02:18]} 29. g3 {[%emt 0:07:03]} Ne6 {[%emt 0:01:30]} 30. Qd2 {[%emt 0:01:23]} b6 {[%emt 0:04:41]} 31. Rc3 {[%emt 0:03:13]} a4 {[%emt 0:03:23]} 32. Bd5 {[%emt 0:01:35]} Qc5 {[%emt 0:01:37]} 33. Kg2 {[%emt 0:01:57]} Nc7 {[%emt 0:01:05]} 34. Bf3 {[%emt 0:00:07]} h5 {[%emt 0:00:40]} 35. Rd3 {[%emt 0:02:02]} Re6 {[%emt 0:00:49]} 36. Rd4 {[%emt 0:00:30]} Rf6 {[%emt 0:00:52]} 37. b4 {[%emt 0:04:06]} axb3 {[%emt 0:01:00]} 38. axb3 {[%emt 0:00:08]} Qf5 {[%emt 0:03:05]} 39. Rf4 {[%emt 0:01:17]} 1-0